fUSD/lending_fUSD_20240718
["ID","MTS","AMOUNT","RATE_DAILY","PERIOD"]
[332593088,1721321432547,-302.32,0.00020174,2]
[332593089,1721321432557,-200.0,0.00020187,2]
[332593090,1721321432567,-747.53,0.00020273,2]
[332593091,1721321432580,-245.95,0.00020776,2]
[332593092,1721321432590,-300.0,0.00021,2]
[332593093,1721321432599,-747.53,0.00021095,2]
[332593094,1721321432609,-162.76,0.00021644,2]
[332593095,1721321432619,-747.53,0.00021917,2]
[332593096,1721321432629,-565.04,0.00021918,2]
[332593097,1721321432639,-150.0,0.00021918,2]
[332593098,1721321432649,-156.01357118,0.00022344,2]
[332593099,1721321432659,-232.0,0.00022402,2]
[332593100,1721321432670,-160.0,0.00022509,2]
[332593101,1721321432680,-747.53,0.00022739,2]
[332593102,1721321432690,-153.0,0.00022973,2]
[332593103,1721321432699,-153.0,0.00022973,2]
[332593104,1721321432709,-153.0,0.00022973,2]
[332593105,1721321432720,-153.0,0.00022973,2]
[332593106,1721321432729,-153.0,0.00022973,2]
[332593107,1721321432739,-153.0,0.00022973,2]
[332593108,1721321432748,-153.0,0.00022973,2]
[332593109,1721321432758,-245.95,0.0002304,2]
[332593110,1721321432767,-150.0,0.00023483,2]
[332593111,1721321432778,-747.53,0.00023561,2]
[332593112,1721321432787,-295.82708521,0.0002388,2]
[332593113,1721321432797,-1687.34794139,0.00024,2]
[332593114,1721321432806,-155.0,0.00024,2]
[332593115,1721321432816,-170.08264759,0.00024,2]
[332593116,1721321432825,-2137.84612481,0.00024,15]
[332593117,1721321432838,-2149.42875059,0.00024,15]
[332593118,1721321432849,-747.53,0.00024383,2]
[332593119,1721321432858,-220.42,0.00024877,3]
[332593120,1721321432868,-23933.08168229,0.0002489,2]
[332593121,1721321432877,-157.513851,0.000249,2]
[332593122,1721321432886,-10312.43675629,0.000249,2]
[332593123,1721321432896,-829.38072415,0.000249,2]
[332593124,1721321432905,-740.96227558,0.0002498,4]
[332593125,1721321432916,-681.54151361,0.0002498,4]
[332593126,1721321432928,-865.46028817,0.0002498,4]
[332593127,1721321432955,-669.94125223,0.0002498,4]
[332593146,1721321438086,-4927.50551548,0.0002498,4]
[332593147,1721321438097,-252.8,0.0002498,2]
[332593148,1721321438107,-252.8,0.0002498,2]
[332593149,1721321438116,-252.8,0.0002498,2]
[332593150,1721321438126,-15456.27194178,0.00024989,2]
[332593151,1721321438135,-144972.94813944,0.0002499,4]
[332593152,1721321438147,-319.8,0.0002499,4]
[332593153,1721321438172,-468.50164004,0.0002499,4]
[332593154,1721321438184,-98686.48641752,0.0002499,4]
[332593155,1721321438193,-762.08435255,0.0002499,4]
[332593156,1721321438203,-252.8,0.0002499,2]
[332593157,1721321438212,-252.8,0.0002499,2]
[332593158,1721321438224,-7717.92258764,0.00025,2]
[332593159,1721321438235,-1520.39891193,0.00025,2]
[332593160,1721321438269,-12133.84786113,0.00025,2]
[332593161,1721321438309,-4093.73668848,0.00025,2]
[332593162,1721321438320,-10978.45424228,0.00025,2]
[332593179,1721321439515,-352.63225791,0.00025,2]
[332593180,1721321439527,-1210.87777198,0.00025,2]
[332593181,1721321439539,-1595.005495,0.00025,2]
[332593182,1721321439550,-4004.61999969,0.00025,2]
[332593183,1721321439642,-13693.14152,0.00025,2]
[332593185,1721321439718,-51263.17640136,0.00025,2]
[332593186,1721321439979,-6946.52823739,0.00025,2]
[332593223,1721321443531,-648.87,0.00025,2]
[332593226,1721321443547,-784.6,0.00025,2]
[332593237,1721321445794,-17500.61451572,0.00025,2]
[332593238,1721321445809,-3232.18368,0.00025,2]
[332593239,1721321445854,-2286.09260666,0.00025,2]
[332593240,1721321445869,-4883.00836232,0.00025,2]
[332593265,1721322406439,-166.04615262,0.00013898,2]
[332593266,1721322406462,-300.0,0.00013988,2]
[332593267,1721322406484,-12325.84224144,0.00013989,2]
[332593276,1721322631850,-261.57088958,0.00013989,2]
[332593277,1721322631914,-204.47526304,0.00013989,2]
[332593278,1721322631926,-2294.75344385,0.00013989,2]
[332593279,1721322631940,-155.0,0.00013989,2]
[332593280,1721322631949,-155.0,0.00013989,2]
[332593281,1721322631959,-150.0,0.00015,2]
[332593282,1721322631969,-1062.28088444,0.00016956,2]
[332593283,1721322632002,-74.65932255,0.00016956,2]
[332593284,1721322632013,-200.0,0.00017,2]
[332593285,1721322632022,-1925.34067745,0.000185,2]
[332593286,1721322632037,-500.0,0.000185,2]
[332593287,1721322632138,-1817.60409839,0.000185,2]
[332593312,1721322637695,-4320.3262113,0.000185,2]
[332593314,1721322637705,-3000.0,0.000186,2]
[332593316,1721322637715,-232.94,0.00019469,2]
[332593318,1721322637725,-688.0,0.0002,2]
[332593320,1721322637734,-156.0484284,0.00020136,2]
[332593322,1721322637745,-160.0,0.00021187,2]
[332593324,1721322637755,-153.55759405,0.00021251,2]
[332593325,1721322637765,-150.0,0.00021328,2]
[332593326,1721322637776,-153.66948287,0.00021369,2]
[332593327,1721322637787,-238.41,0.00021616,2]
[332593328,1721322637797,-250.0,0.00021643,2]
[332593329,1721322637807,-199.63,0.00021644,2]
[332593330,1721322637816,-164.65,0.00021644,2]
[332593331,1721322637826,-1616.51184636,0.00021706,2]
[332593332,1721322637839,-569.8699703,0.00021706,2]
[332593333,1721322637861,-815.0,0.00021706,2]
[332593334,1721322637886,-841.67496685,0.00021706,2]
[332593335,1721322637911,-1156.94321649,0.00021706,2]
[332593336,1721322637921,-1773.01,0.00021707,2]
[332593356,1721322638269,-758.97,0.00021721,2]
[332593359,1721322638286,-232.94,0.00021733,2]
[332593361,1721322638296,-250.0,0.00021766,2]
[332593363,1721322638305,-152.40015854,0.00021793,2]
[332593365,1721322638314,-150.0,0.00021918,2]
[332593367,1721322638323,-185.95,0.00021924,2]
[332593368,1721322638333,-164.27,0.00022015,2]
[332593370,1721322638342,-518.17,0.00022369,2]
[332593372,1721322638352,-3000.0,0.000227,2]
[332593374,1721322638362,-470.86,0.00023581,2]
[332593376,1721322638371,-232.94,0.00023997,2]
[332593378,1721322638380,-150.0,0.0002411,2]
[332593380,1721322638390,-153.55759405,0.00024112,2]
[332593382,1721322638399,-156.33747226,0.00024318,2]
[332593384,1721322638408,-236.00917099,0.00024719,2]
[332593386,1721322638417,-21539.77351407,0.00024897,2]
[332593388,1721322638427,-9662.9989193,0.00024897,2]
[332593390,1721322638436,-157.513851,0.000249,2]
[332593392,1721322638447,-8911.20764258,0.0002498,4]
[332593394,1721322638456,-151.68,0.0002498,2]
[332593396,1721322638466,-151.68,0.0002498,2]
[332593398,1721322638476,-17822.4152852,0.00024987,4]
[332593400,1721322638485,-151.68,0.00024989,2]
[332593402,1721322638496,-97823.81877222,0.0002499,4]
[332593404,1721322638507,-569.89984797,0.0002499,4]
[332593409,1721322638541,-774.35629151,0.0002499,4]
[332593411,1721322638554,-116120.30647335,0.0002499,4]
[332593415,1721322638582,-563.31326908,0.0002499,4]
[332593458,1721322639779,-670.96997627,0.0002499,4]
[332593459,1721322639792,-24079.9417196,0.0002499,4]
[332593460,1721322639804,-151.68,0.0002499,2]
[332593461,1721322639813,-151.68,0.0002499,2]
[332593462,1721322639825,-13654.21637363,0.00024997,2]
[332593463,1721322639843,-13260.29473534,0.00024997,2]
[332593464,1721322639855,-500.0,0.00024999,2]
[332593465,1721322639866,-2109.20526466,0.00024999,2]
[332593466,1721322639878,-404.62776063,0.00024999,2]
[332593467,1721322639890,-12942.43891649,0.00024999,2]
[332593468,1721322639900,-1399.36753843,0.00025,2]
[332593469,1721322639946,-698.50638546,0.00025,2]
[332593470,1721322639974,-2013.124334,0.00025,2]
[332593471,1721322639987,-300.0495264,0.00025,2]
[332593472,1721322640000,-1730.84596,0.00025,2]
[332593473,1721322640011,-9210.76,0.00025,2]
[332593474,1721322640168,-342560.616024,0.00025,2]
[332593475,1721322640249,-82456.96136671,0.00025,2]
[332593478,1721322640261,-5221.3993142,0.00025,2]
[332593523,1721322643609,-264199.15706534,0.00025,2]
[332593524,1721322643620,-500.32600203,0.00025,2]
[332593525,1721322643632,-1596.30903577,0.00025,2]
[332593526,1721322643643,-687.85090234,0.00025,2]
[332593527,1721322643655,-1576.20000005,0.00025,2]
[332593528,1721322643667,-1712.7,0.00025,2]
[332593529,1721322643678,-327.12129972,0.00025,2]
[332593530,1721322643690,-2984.75,0.00025,2]
[332593531,1721322643701,-57693.21817411,0.00025,2]
[332593532,1721322643712,-27352.03712013,0.00025,2]
[332593543,1721322645729,-684.49,0.00025,2]
[332593544,1721322645841,-1599.65,0.00025,2]
[332593545,1721322645854,-3063.28039453,0.00025,2]
[332593546,1721322646011,-1282.21815958,0.00025,2]
[332593547,1721322646024,-817.89229718,0.00025,2]
[332593548,1721322646053,-5938.3593582,0.00025,2]
[332593549,1721322646065,-8021.15857371,0.00025,2]
[332593550,1721322646077,-1250.0945842,0.00025,2]
[332593551,1721322646088,-2128.84910156,0.00025,2]
[332593552,1721322646100,-626.69982208,0.00025,2]
[332593553,1721322646116,-2521.5988,0.00025,2]
[332593554,1721322646128,-8427.18743423,0.00025,2]
[332593555,1721322646140,-9049.34034,0.00025,2]
[332593556,1721322646152,-5141.05443301,0.00025,2]
[332593557,1721322646164,-341653.50498862,0.00025,2]
[332593558,1721322646176,-127636.37097447,0.00025,2]
[332593585,1721322997522,7846.50313688,0.00013578,2]
[332593587,1721323018716,1782.57534508,0.00013578,2]
[332593588,1721323019308,175.85449639,0.00013578,2]
[332593589,1721323026701,178.31986387,0.00013578,2]
[332593590,1721323029230,796.61234671,0.00013578,2]
[332593591,1721323079125,1800.47859652,0.00013578,2]
[332593593,1721323241072,1078.28995199,0.00013579,2]
[332593605,1721323391413,199.2521534,0.00013579,2]
[332593608,1721323545157,285.98577903,0.00013579,2]
[332593620,1721323717982,1179.0574774,0.00013579,2]
[332593627,1721323832478,-2015.05034501,0.00013989,2]
[332593628,1721323832490,-364.67036088,0.00013989,2]
[332593629,1721323832633,-10412.16768817,0.00013989,2]
[332593630,1721323832643,-331.48873836,0.00014519,2]
[332593631,1721323832652,-826.18710851,0.0001499,2]
[332593632,1721323832673,-1155.80478358,0.0001499,2]
[332593633,1721323832685,-1269.26040965,0.0001499,2]
[332593634,1721323832694,-3886.18338764,0.00016,2]
[332593648,1721323837879,-871.49,0.00016,2]
[332593651,1721323837974,-242.32661236,0.00016,2]
[332593652,1721323837984,-250.0,0.00016425,2]
[332593653,1721323837996,-60.29409727,0.00016441,2]
[332593654,1721323838056,-2144.45219119,0.00016441,2]
[332593655,1721323838065,-521.86637455,0.00016441,2]
[332593656,1721323838081,-498.35828287,0.00016441,2]
[332593657,1721323838096,-14577.361984,0.00016441,2]
[332593658,1721323838108,-4057.86053707,0.00016441,2]
[332593659,1721323838118,-461.79367959,0.00016458,2]
[332593660,1721323838133,-535.43603324,0.00016458,2]
[332593661,1721323838146,-2.77028717,0.00016458,2]
[332593662,1721323838156,-150.99,0.00016458,2]
[332593663,1721323838166,-210.55156384,0.00016459,2]
[332593664,1721323838175,-412.2802211,0.00016856,2]
[332593665,1721323838211,-2128.0797789,0.00016856,2]
[332593666,1721323838221,-150.0,0.00017533,2]
[332593667,1721323838231,-499.99,0.00017534,2]
[332593668,1721323838241,-153.24454137,0.00018164,2]
[332593669,1721323838251,-154.98095525,0.0001839,2]
[332593670,1721323838260,-321.29,0.0001889,2]
[332593671,1721323838270,-150.32699265,0.00019238,2]
[332593672,1721323838279,-153.24454137,0.00019266,2]
[332593673,1721323838289,-188.4103101,0.0002,2]
[332593674,1721323838299,-152.40015854,0.00020251,2]
[332593675,1721323838309,-156.45941071,0.00020298,2]
[332593676,1721323838319,-164.27,0.00020721,2]
[332593677,1721323838332,-1091.2439876,0.00020727,2]
[332593678,1721323838342,-696.28,0.00020728,2]
[332593679,1721323838351,-758.97,0.00020761,2]
[332593680,1721323838361,-185.95,0.00020884,2]
[332593681,1721323838371,-172.8,0.00020943,2]
[332593682,1721323838380,-250.0,0.00021011,2]
[332593683,1721323838390,-250.0,0.00021087,2]
[332593684,1721323838399,-321.29,0.00021154,2]
[332593685,1721323838410,-171.15,0.00021155,2]
[332593686,1721323838420,-1773.01,0.00021189,2]
[332593687,1721323838430,-728.06,0.00021275,2]
[332593688,1721323838441,-1322.78,0.00021429,2]
[332593689,1721323838451,-166.97,0.00021644,2]
[332593690,1721323838460,-150.96,0.00021644,2]
[332593691,1721323838469,-155.0,0.00021899,2]
[332593692,1721323838478,-3000.0,0.000219,2]
[332593693,1721323838490,-1000.0,0.00021917,2]
[332593694,1721323838500,-543.76,0.00021918,2]
[332593695,1721323838510,-156.96,0.00021918,2]
[332593696,1721323838520,-150.0,0.00021918,2]
[332593697,1721323838530,-205.81,0.00021918,2]
[332593699,1721323838540,-150.0,0.00022495,2]
[332593701,1721323838549,-150.0,0.00023071,2]
[332593703,1721323838560,-5608.94443968,0.00023199,2]
[332593705,1721323838570,-700.38501093,0.000232,2]
[332593707,1721323838579,-696.28,0.00023319,2]
[332593709,1721323838589,-180.0,0.00023403,2]
[332593711,1721323838599,-321.29,0.00023418,2]
[332593713,1721323838609,-2279.10597725,0.00023451,3]
[332593715,1721323838619,-3445.47650564,0.00023452,2]
[332593717,1721323838628,-1000.0,0.00023458,2]
[332593719,1721323838638,-172.8,0.00023561,2]
[332593721,1721323838647,-150.0,0.00023648,2]
[332593723,1721323838657,-171.15,0.000238,2]
[332593725,1721323838667,-150.0,0.00024225,2]
[332593727,1721323838678,-236.00917099,0.00024666,2]
[332593729,1721323838688,-1559.971896,0.000248,2]
[332593731,1721323838699,-150.0,0.00024802,2]
[332593733,1721323838709,-164.27,0.00024865,2]
[332593735,1721323838722,-1371.59346475,0.00024889,2]
[332593737,1721323838732,-12058.24653686,0.0002489,2]
[332593739,1721323838742,-324.50104717,0.00024899,2]
[332593741,1721323838752,-157.513851,0.000249,2]
[332593743,1721323838762,-321.44547856,0.000249,2]
[332593745,1721323838772,-116972.45154138,0.0002499,4]
[332593748,1721323838785,-2033.01980657,0.0002499,4]
[332593801,1721323840030,-1825.30316586,0.0002499,4]
[332593803,1721323840357,-41374.91738175,0.0002499,4]
[332593804,1721323840372,-84107.79687344,0.0002499,4]
[332593805,1721323840382,-109984.227062,0.0002499,4]
[332593806,1721323840392,-460.73330782,0.0002499,2]
[332593807,1721323840403,-155.0,0.00024996,3]
[332593808,1721323840416,-1000.0,0.00024999,2]
[332593809,1721323840427,-438.05964423,0.00024999,2]
[332593810,1721323840436,-3114.29046017,0.00024999,2]
[332593811,1721323840447,-670447.50097075,0.00025,2]
[332593812,1721323840457,-1628.31172157,0.00025,2]
[332593813,1721323840467,-4287.2748754,0.00025,15]
[332593815,1721323840477,-2000.0,0.00025,2]
[332593817,1721323840487,-200.0,0.00025,2]
[332593819,1721323840496,-155.0,0.00025,2]
[332593821,1721323840506,-932.53156505,0.00025,2]
[332593823,1721323840516,-225.7013246,0.00025,2]
[332593825,1721323840526,-2000.0,0.00025,2]
[332593827,1721323840535,-200.0,0.00025,2]
[332593829,1721323840545,-200.0,0.00025,2]
[332593831,1721323840555,-3000.0,0.00025,2]
[332593833,1721323840565,-2000.0,0.00025,2]
[332593835,1721323840575,-200.0,0.00025,2]
[332593837,1721323840585,-8210.44962562,0.00025005,4]
[332593839,1721323840595,-6874.01419139,0.00025008,4]
[332593841,1721323840605,-2486.712629,0.00025018,2]
[332593843,1721323840615,-536.7423576,0.00025018,2]
[332593845,1721323840624,-27496.0567656,0.00025025,4]
[332593847,1721323840634,-4067.3272656,0.00025035,2]
[332593849,1721323840643,-49428.4500726,0.00025035,2]
[332593851,1721323840653,-2498.33899568,0.00025041,2]
[332593853,1721323840663,-48118.0993397,0.00025042,4]
[332593855,1721323840673,-10375.27147392,0.00025051,2]
[332593857,1721323840683,-93726.102286,0.00025052,2]
[332593859,1721323840696,-4652.1289315,0.00025079,2]
[332593861,1721323840705,-6874.01419139,0.0002524,4]
[332593863,1721323840715,-2000.0,0.0002525,2]
[332593865,1721323840725,-200.0,0.0002525,2]
[332593867,1721323840734,-2000.0,0.0002525,2]
[332593869,1721323840744,-200.0,0.0002525,2]
[332593871,1721323840753,-200.0,0.0002525,2]
[332593873,1721323840763,-200.0,0.0002525,2]
[332593875,1721323840773,-150.0,0.00025379,2]
[332593877,1721323840783,-6874.01419139,0.00025493,4]
[332593879,1721323840794,-2000.0,0.00025503,2]
[332593881,1721323840804,-200.0,0.00025503,2]
[332593883,1721323840813,-2000.0,0.00025503,2]
[332593885,1721323840823,-200.0,0.00025503,2]
[332593887,1721323840832,-421.59310684,0.00025514,2]
[332593889,1721323840842,-1051.02158597,0.00025678,2]
[332593891,1721323840852,-652.36654686,0.00025679,2]
[332593893,1721323840862,-311.83101963,0.00025681,2]
[332593895,1721323840875,-321.29,0.00025682,2]
[332593896,1721323840886,-2000.0,0.00025758,2]
[332593897,1721323840896,-200.0,0.00025758,2]
[332593898,1721323840906,-2000.0,0.00025758,2]
[332593899,1721323840915,-200.0,0.00025758,2]
[332593900,1721323840925,-3000.0,0.0002587,2]
[332593901,1721323840934,-6874.01419139,0.0002589,4]
[332593902,1721323840945,-152.03045122,0.000259,2]
[332593903,1721323840955,-696.28,0.0002591,2]
[332593904,1721323840965,-690.00328514,0.00025933,2]
[332593905,1721323840975,-2021.38780005,0.00025933,2]
[332593906,1721323840984,-12058.24653681,0.00025934,2]
[332593907,1721323840994,-13748.0283828,0.00025939,4]
[332593908,1721323841004,-150.0,0.00025955,2]
[332593909,1721323841013,-2073.0,0.00026,2]
[332593910,1721323841023,-2000.0,0.00026015,2]
[332593911,1721323841033,-200.0,0.00026015,2]
[332593912,1721323841043,-172.8,0.00026179,120]
[332593913,1721323841052,-171.15,0.00026444,2]
[332593914,1721323841062,-150.0,0.00026532,2]
[332593915,1721323841071,-462.6966312,0.00026872,2]
[332593916,1721323841081,-1266.3458359,0.00026872,2]
[332593917,1721323841090,-6874.01419139,0.00026873,4]
[332593918,1721323841099,-1388.47743863,0.00026878,2]
[332593919,1721323841109,-462.6966312,0.00026879,2]
[332593920,1721323841119,-1447.88783107,0.00026879,2]
[332593921,1721323841128,-12058.24653681,0.00026977,2]
[332593922,1721323841137,-155.0,0.00027,2]
[332593923,1721323841146,-47546.8730174,0.00027,7]
[332593924,1721323841156,-121110.80048304,0.00027,30]
[332593925,1721323841165,-500.0,0.00027005,2]
[332593926,1721323841175,-1927.92209274,0.00027006,2]
[332593927,1721323841184,-327.6481753,0.00027106,2]
[332593928,1721323841195,-155.1924768,0.00027108,2]
[332593929,1721323841205,-150.0,0.00027109,2]
[332593930,1721323841215,-227.41308538,0.00027129,5]
[332593931,1721323841224,-3000.0,0.0002713,2]
[332593932,1721323841235,-2497.81,0.00027397,10]
[332593933,1721323841245,-1871.56368,0.00027671,3]
[332593934,1721323841256,-8500.0,0.00027671,3]
[332593935,1721323841266,-150.0,0.00027686,2]
[332593936,1721323841277,-199.63,0.00027714,2]
[332593937,1721323841287,-270.10702437,0.00027751,2]
[332593938,1721323841296,-1279.44755398,0.00027752,2]
[332593939,1721323841307,-155.08215642,0.00027754,2]
[332593940,1721323841316,-155.0,0.00027784,2]
[332593941,1721323841327,-300.0,0.00027785,2]
[332593942,1721323841340,-160.0,0.00027785,2]
[332593943,1721323841350,-321.29,0.00027945,2]
[332593944,1721323841361,-14909.71550637,0.00028,2]
[332593945,1721323841370,-12058.24653681,0.00028021,2]
[332593946,1721323841380,-434.0,0.00028164,5]
[332593947,1721323841390,-256.71472893,0.00028262,2]
[332593948,1721323841399,-256.71472893,0.00028262,2]
[332593949,1721323841410,-150.0,0.00028263,2]
[332593950,1721323841420,-3000.0,0.0002837,2]
[332593951,1721323841429,-696.28,0.00028501,2]
[332593952,1721323841439,-156.45941071,0.00028713,2]
[332593953,1721323841451,-172.8,0.00028796,120]
[332593954,1721323841461,-150.0,0.00028839,2]
[332593955,1721323841471,-150.96,0.00028853,2]
[332593956,1721323841480,-281.17440404,0.00028874,2]
[332593957,1721323841490,-150.0,0.00028875,2]
[332593958,1721323841500,-155.24207177,0.00028999,2]
[332593959,1721323841510,-3221.39460204,0.00029,2]
[332593960,1721323841519,-302.49420379,0.00029064,2]
[332593961,1721323841529,-12058.24653681,0.00029065,15]
[332593962,1721323841539,-171.15,0.00029089,2]
[332593963,1721323841548,-150.0,0.00029416,2]
[332593964,1721323841557,-3000.0,0.0002962,2]
[332593965,1721323841567,-152.40015854,0.00029725,2]
[332593966,1721323841577,-150.0,0.00029875,2]
[332593967,1721323841586,-460.73330782,0.0002999,2]
[332593968,1721323841596,-150.0,0.00029993,2]
[332593969,1721323841605,-500.0,0.0003,3]
[332593970,1721323841616,-500.85,0.0003,3]
[332593971,1721323841626,-10000.0,0.0003,30]
[332593972,1721323841635,-951.47482112,0.0003,2]
[332593973,1721323841645,-683.15119366,0.0003,2]
[332593974,1721323841655,-1677.25294195,0.0003,2]
[332593975,1721323841665,-21541.94568767,0.0003,30]
[332593976,1721323841674,-160.0,0.000301,2]
[332593977,1721323841684,-2073.43301975,0.000301,2]
[332593978,1721323841694,-2000.0,0.000301,2]
[332593979,1721323841703,-12058.24653681,0.00030108,15]
[332593980,1721323841713,-321.29,0.00030209,2]
[332593981,1721323841725,-718.16510346,0.00030265,4]
[332593982,1721323841735,-29811.30969726,0.00030266,3]
[332593983,1721323841744,-294.7,0.00030266,3]
[332593984,1721323841754,-150.0,0.00030317,4]
[332593985,1721323841764,-150.0,0.0003057,2]
[332593986,1721323841774,-3000.0,0.0003087,2]
[332593987,1721323841783,-150.0,0.00030875,2]
[332593988,1721323841793,-696.28,0.00031092,2]
[332593989,1721323841803,-150.0,0.00031147,2]
[332593990,1721323841813,-12058.24653681,0.00031152,15]
[332593991,1721323841823,-9395.43929394,0.00031171,2]
[332593992,1721323841834,-9395.43929393,0.00031171,2]
[332593993,1721323841843,-9395.43929393,0.00031171,2]
[332593994,1721323841854,-2221.19693694,0.0003121,2]
[332593995,1721323841863,-172.8,0.00031414,120]
[332593996,1721323841872,-294.0,0.0003152,23]
[332593997,1721323841882,-411.17106286,0.00031703,4]
[332593998,1721323841894,-153.24454137,0.00031704,7]
[332593999,1721323841904,-150.0,0.00031723,2]
[332594000,1721323841915,-171.15,0.00031733,2]
[332594001,1721323841924,-492.86598993,0.000318,2]
[332594002,1721323841935,-156.45941072,0.00031865,7]
[332594003,1721323841944,-150.0,0.00031875,2]
[332594004,1721323841954,-260.04977456,0.00032099,30]
[332594005,1721323841963,-12058.24653681,0.00032196,15]
[332594006,1721323841975,-150.0,0.000323,2]
[332594007,1721323841984,-321.29,0.00032473,2]
[332594008,1721323841995,-155.75613055,0.00032707,7]
[332594009,1721323842004,-565.71526295,0.00032775,2]
[332594010,1721323842013,-160.88280924,0.00032776,2]
[332594011,1721323842023,-3557.85866518,0.000328,2]
[332594012,1721323842032,-1460.4369221,0.0003281,2]
[332594013,1721323842114,-460.73330782,0.00032866,2]
[332594014,1721323842124,-624568.56904285,0.00032875,21]
[332594015,1721323842137,-2503.51828253,0.00032875,21]
[332594031,1721323843726,-300.0,0.00027784,2]
[332594032,1721323843735,-545.37877852,0.00028066,2]
[332594033,1721323843745,-687.39533049,0.00031886,2]
[332594034,1721323843756,-979.60466951,0.00031886,2]
[332594035,1721323843764,-11957.16601185,0.00032875,21]
[332594037,1721323846119,-155.0,0.00024989,3]
[332594038,1721323846128,-652.36654686,0.00025513,2]
[332594039,1721323846138,-227.41308538,0.00027108,5]
[332594040,1721323846147,-1088.29389148,0.00031886,2]
[332594041,1721323846159,-1224.84000004,0.00031886,2]
[332594042,1721323846170,-666.77564952,0.00031886,2]
[332594043,1721323846209,-511.171,0.00031886,2]
[332594083,1721324734123,2204.33932666,0.00013579,2]
[332594085,1721324776300,3440.16192052,0.00013579,2]
[332594107,1721325032191,-155.0,0.00013786,2]
[332594109,1721325032200,-160.39430934,0.00013787,2]
[332594111,1721325032209,-155.0,0.00013884,2]
[332594113,1721325032219,-652.36654686,0.00013885,2]
[332594114,1721325032229,-1388.47743863,0.00013886,2]
[332594115,1721325032238,-12791.88839406,0.00013989,2]
[332594116,1721325032250,-227.41308538,0.00013996,2]
[332594117,1721325032259,-300.0,0.00014988,2]
[332594118,1721325032269,-150.0,0.00015,2]
[332594119,1721325032280,-1652.17852608,0.00015,2]
[332594120,1721325032291,-5000.0,0.00016,2]
[332594121,1721325032300,-200.97891462,0.00016459,2]
[332594122,1721325032310,-2332.77364382,0.00017167,2]
[332594123,1721325032320,-150.0,0.00019999,2]
[332594124,1721325032331,-327.6481753,0.0002,2]
[332594125,1721325032343,-1279.44755398,0.0002,2]
[332594126,1721325032354,-10000.0,0.0002,2]
[332594127,1721325032363,-2021.38780005,0.000202,2]
[332594128,1721325032373,-869.0,0.000205,2]
[332594129,1721325032382,-162.76,0.00021644,2]
[332594130,1721325032391,-179.66,0.00021644,2]
[332594131,1721325032400,-151.84947486,0.00021754,2]
[332594132,1721325032410,-500.0,0.00022,2]
[332594133,1721325032421,-208.83,0.00024188,2]
[332594134,1721325032430,-207.46671494,0.00025,2]
[332594135,1721325032439,-364.03,0.00025417,2]
[332594136,1721325032449,-193.52,0.0002558,30]
[332594137,1721325032458,-388.57516543,0.00025879,2]
[332594138,1721325032514,-116.87483457,0.00025879,2]
[332594139,1721325032524,-161.07,0.00026126,120]
[332594140,1721325032535,-208.83,0.00026452,2]
[332594141,1721325032756,-150.0,0.00026474,2]
[332594142,1721325032827,-199.49,0.00026695,5]
[332594143,1721325032838,-200.45,0.00026725,5]
[332594145,1721325032847,-198.79,0.00026727,5]
[332594147,1721325032857,-201.2,0.00026732,5]
[332594149,1721325032866,-197.81,0.00026735,5]
[332594151,1721325032875,-199.04,0.0002674,5]
[332594153,1721325032885,-202.93,0.00026745,5]
[332594154,1721325032896,-31.94045994,0.00026747,5]
[332594163,1721325036152,155.0,0.00013579,2]
[332594170,1721325038178,-170.00954006,0.00026747,5]
[332594171,1721325038187,-203.53,0.00026752,5]
[332594172,1721325038196,-196.84,0.00026754,5]
[332594173,1721325038207,-198.13,0.00026759,5]